[Event "EICC 2025"]
[Site "Eforie-Nord"]
[Date "2025.03.17"]
[Round "3.16"]
[White "Malek, Jan"]
[Black "Huschenbeth, Niclas"]
[Result "1/2-1/2"]
[Annotator "TA"]
[ECO "C42"]
[WhiteElo "2504"]
[BlackElo "2589"]
[PlyCount "55"]
[EventDate "2025.03.14"]
[EventType "swiss"]
[EventCountry "ROU"]
[SourceTitle "playchess.com"]
[Source "ChessBase"]
[SourceQuality "1"]
[TimeControl "40/5400+30:1800+30"]

{[%evp 18,55,30,43,62,2,23,-26,12,8,13,14,12,10,10,13,10,12,11,-17,19,11,7,19,12,10,18,17,16,0,0,0,0,0,0,0,0,0,0,0]} 1. e4 {[%emt 0:00:02]} e5 {[%emt 0:00:22]} 2. Nf3 {[%emt 0:00:07]} Nf6 {[%emt 0:00:06]} 3. Nxe5 {[%emt 0:00:23]} d6 {[%emt 0:00:06]} 4. Nf3 {[%emt 0:00:07]} Nxe4 {[%emt 0:00:06]} 5. d4 {[%emt 0:00:06]} d5 {[%emt 0:00:06]} 6. Bd3 {[%emt 0:00:06]} Bd6 {[%emt 0:00:28]} 7. O-O {[%emt 0:00:18]} O-O {[%emt 0:00:09]} 8. c4 {[%emt 0:00:27]} c6 {[%emt 0:00:10]} 9. Re1 {[%emt 0:01:20]} Bf5 {[%emt 0:00:38]} 10. Qb3 {[%emt 0:07:22]} Qd7 {[%emt 0:02:50] A sharp opening C42: Petroff Defence: 3 Nxe5 and unusual White 3rd moves.} 11. c5 {[%emt 0:00:50]} (11. Nc3 $14) 11... Bc7 $11 {[%emt 0:00:22]} 12. Nc3 {[%emt 0:00:08]} (12. Nh4 $142) 12... Re8 {[%emt 0:12:46] Black has an edge.} (12... Nxc5 $5 13. dxc5 Bxd3 $17) 13. Ne2 $146 {[%emt 0:00:14][%cal Oc1f4] The position is equal.} (13. Be3 h6 14. Nh4 Bh7 15. g3 Bd8 16. Nf3 Bf6 17. Rad1 Na6 18. Bxe4 dxe4 19. Ne5 Bxe5 20. dxe5 {½-½ Maghsoodloo,P (2740)-Nepomniachtchi,I (2769) Tata Steel-A 86th 2024 (7)}) 13... Qc8 {[%emt 0:15:49]} 14. Bf4 {[%emt 0:11:49]} Nd7 {[%emt 0:02:24]} 15. Qc2 {[%emt 0:07:41]} Bg6 {[%emt 0:16:23]} 16. b4 {[%emt 0:14:11]} Nef6 {[%emt 0:05:27][%cal Oe8e2] [#] ...Rxe2! is the strong threat.} 17. g3 {[%emt 0:08:02]} a5 {[%emt 0:12:31]} 18. a3 {[%emt 0:09:49]} Bh5 {[%emt 0:05:51]} (18... Bxd3 19. Qxd3 Bxf4 20. Nxf4 axb4 21. axb4 Rxe1+ 22. Rxe1 Ne4) 19. Bxc7 {[%emt 0:02:41]} axb4 {[%emt 0:06:59]} (19... Qxc7 {simplifies} 20. Nh4 Bxe2 21. Bxe2 Nf8) 20. Nh4 {[%emt 0:07:29] [#]} Bxe2 {[%emt 0:06:34]} 21. Bxe2 {[%emt 0:00:41] Black must now prevent Bf4.} b3 {[%emt 0:00:59]} 22. Qxb3 {[%emt 0:01:31]} Qxc7 {[%emt 0:00:02]} 23. Bd3 {[%emt 0:03:11]} Rxe1+ {[%emt 0:03:32]} 24. Rxe1 {[%emt 0:03:17]} g6 {[%emt 0:00:04]} 25. Nf3 {[%emt 0:00:11]} b6 {[%emt 0:01:34]} 26. cxb6 {[%emt 0:04:31]} Qxb6 {[%emt 0:00:02]} 27. Qxb6 {[%emt 0:02:06]} Nxb6 {[%emt 0:00:01]} 28. Rc1 {[%emt 0:00:21] Weighted Error Value: White=0.11 (very precise) /Black=0.07 (flawless)   Mistake:       	White=2     	---        Inaccurate:     	White=1     	Black=2      OK:         	White=8     	Black=7      Best:        	---       	Black=2} 1/2-1/2

[Event "EICC 2025"]
[Site "Eforie-Nord"]
[Date "2025.03.17"]
[Round "3.16"]
[White "Eren, Ataberk"]
[Black "Dragnev, Valentin"]
[Result "0-1"]
[Annotator "RC"]
[ECO "B22"]
[WhiteElo "2402"]
[BlackElo "2545"]
[PlyCount "150"]
[EventDate "2025.03.14"]
[EventType "swiss"]
[EventCountry "ROU"]
[SourceTitle "playchess.com"]
[Source "ChessBase"]
[SourceQuality "1"]
[TimeControl "40/5400+30:1800+30"]

1. e4 {[%emt 0:00:08]} c5 {[%emt 0:00:08]} 2. c3 {[%emt 0:02:09]} d5 {[%emt 0:00:55]} 3. exd5 {[%emt 0:00:42]} Qxd5 {[%emt 0:00:05]} 4. d4 {[%emt 0:00:43]} Nf6 {[%emt 0:01:02]} 5. Nf3 {[%emt 0:04:50]} e6 {[%emt 0:00:06]} 6. Na3 {[%emt 0:11:03]} Qd8 {[%emt 0:04:50]} 7. Be2 {[%emt 0:04:23]} Nc6 {[%emt 0:06:13]} 8. O-O {[%emt 0:02:48]} cxd4 {[%emt 0:02:14]} 9. Nb5 {[%emt 0:00:32]} Bc5 {[%emt 0:04:20]} 10. Nbxd4 {[%emt 0:06:11]} Nxd4 {[%emt 0:01:01]} 11. Nxd4 {[%emt 0:00:06]} Bxd4 {[%emt 0:00:20]} 12. Qa4+ {[%emt 0:00:17]} Bd7 {[%emt 0:06:03]} 13. Qxd4 {[%emt 0:00:27]} Bc6 {[%emt 0:01:07]} 14. Qxd8+ {[%emt 0:17:22]} Kxd8 {[%emt 0:01:55]} 15. Be3 {[%emt 0:01:20]} Nd5 {[%emt 0:01:45]} 16. Rfd1 {[%emt 0:02:24]} Kc7 {[%emt 0:01:13]} 17. Bd4 {[%emt 0:04:12]} f6 {[%emt 0:01:03]} 18. g3 {[%emt 0:01:36]} Rhd8 {[%emt 0:30:58]} 19. c4 {[%emt 0:06:51]} Ne7 {[%emt 0:06:26]} 20. Bg4 {[%emt 0:15:26]} Nf5 {[%emt 0:09:15]} 21. Bc3 {[%emt 0:00:59]} Rxd1+ {[%emt 0:00:15]} 22. Rxd1 {[%emt 0:00:14]} Re8 {[%emt 0:03:40]} 23. b3 {[%emt 0:00:40]} Nd6 {[%emt 0:01:39]} 24. Bh5 {[%emt 0:05:33]} Ra8 {[%emt 0:02:54]} 25. Bb4 {[%emt 0:05:38]} Ne4 {[%emt 0:04:26]} 26. Be2 {[%emt 0:02:24]} a5 {[%emt 0:00:33]} 27. Be1 {[%emt 0:00:10]} Ng5 {[%emt 0:01:36]} 28. Rd3 {[%emt 0:01:21]} e5 {[%emt 0:00:08]} 29. Bd2 {[%emt 0:01:51]} Ne6 {[%emt 0:03:52]} 30. Be3 {[%emt 0:00:12]} b6 {[%emt 0:01:55]} 31. f3 {[%emt 0:01:33]} Re8 {[%emt 0:00:58]} 32. Kf2 {[%emt 0:00:51]} f5 {[%emt 0:01:30]} 33. Rd1 {[%emt 0:00:40]} f4 {[%emt 0:01:01]} 34. gxf4 {[%emt 0:00:22]} Nxf4 {[%emt 0:00:02]} 35. Bf1 {[%emt 0:00:40]} Rf8 {[%emt 0:00:10]} 36. c5 {[%emt 0:00:53]} bxc5 {[%emt 0:02:02]} 37. Bxc5 {[%emt 0:00:13]} Nh3+ {[%emt 0:00:30]} 38. Ke1 {[%emt 0:01:00]} Rxf3 {[%emt 0:00:07]} 39. Bd6+ {[%emt 0:00:41]} Kb7 {[%emt 0:00:32]} 40. Rc1 {[%emt 0:00:32]} Nf4 {[%emt 0:00:56]} 41. Kd2 {[%emt 0:30:31]} e4 {[%emt 0:05:06]} 42. Ba6+ {[%emt 0:00:00]} Kb6 {[%emt 0:11:04]} 43. Be2 {[%emt 0:00:00]} Nxe2 {[%emt 0:01:39]} 44. Bc5+ {[%emt 0:00:00]} Kb7 {[%emt 0:00:53]} 45. Kxe2 {[%emt 0:00:00]} Bb5+ {[%emt 0:00:39]} 46. Kd2 {[%emt 0:00:00]} Rd3+ {[%emt 0:05:35]} 47. Kc2 {[%emt 0:00:00]} Rh3 {[%emt 0:04:20]} 48. Bg1 {[%emt 0:00:00]} e3 {[%emt 0:00:35]} 49. Kc3 {[%emt 0:00:00]} Rf3 {[%emt 0:00:52]} 50. Re1 {[%emt 0:00:00]} e2+ {[%emt 0:00:07]} 51. Kd2 {[%emt 0:00:00]} Kc6 {[%emt 0:01:13]} 52. Rc1+ {[%emt 0:00:00]} Kb7 {[%emt 0:01:37]} 53. Be3 {[%emt 0:00:00]} Rf1 {[%emt 0:00:14]} 54. Re1 {[%emt 0:00:00]} Kc6 {[%emt 0:00:49]} 55. Bd4 {[%emt 0:00:00]} g5 {[%emt 0:00:20]} 56. Bc3 {[%emt 0:00:00]} Kb6 {[%emt 0:00:05]} 57. Bd4+ {[%emt 0:00:07]} Kb7 {[%emt 0:00:06]} 58. Bc3 {[%emt 0:00:06]} Kb6 {[%emt 0:00:03]} 59. Bd4+ {[%emt 0:00:03]} Kc6 {[%emt 0:03:20]} 60. Bc3 {[%emt 0:00:04]} a4 {[%emt 0:00:18]} 61. bxa4 {[%emt 0:00:07]} Ba6 {[%emt 0:00:06]} 62. Kc2 {[%emt 0:07:05]} Kd5 {[%emt 0:00:32]} 63. Rc1 {[%emt 0:00:09]} Rf2 {[%emt 0:00:40]} 64. Be1 {[%emt 0:00:26]} Rxh2 {[%emt 0:00:02]} 65. Rb1 {[%emt 0:00:12]} Rh6 {[%emt 0:02:05]} 66. a5 {[%emt 0:00:13]} Rc6+ {[%emt 0:00:41]} 67. Kd2 {[%emt 0:00:06]} h5 {[%emt 0:00:27]} 68. Ke3 {[%emt 0:00:15]} Re6+ {[%emt 0:00:13]} 69. Kd2 {[%emt 0:01:27]} h4 {[%emt 0:00:20]} 70. Rb3 {[%emt 0:00:18]} Rh6 {[%emt 0:00:41]} 71. Rh3 {[%emt 0:00:54]} Ke4 {[%emt 0:00:18]} 72. Rb3 {[%emt 0:01:22]} h3 {[%emt 0:00:43]} 73. Bg3 {[%emt 0:00:04]} h2 {[%emt 0:00:30]} 74. Bxh2 {[%emt 0:00:06]} Rxh2 {[%emt 0:00:07]} 75. Rb6 {[%emt 0:00:11]} Rh1 {[%emt 0:00:20]} 0-1

[Event "EICC 2025"]
[Site "Eforie-Nord"]
[Date "2025.03.17"]
[Round "3.17"]
[White "Muradli, Mahammad"]
[Black "Brunello, Sabino"]
[Result "1/2-1/2"]
[Annotator "TA"]
[ECO "A01"]
[WhiteElo "2584"]
[BlackElo "2494"]
[PlyCount "76"]
[EventDate "2025.03.14"]
[EventType "swiss"]
[EventCountry "ROU"]
[SourceTitle "playchess.com"]
[Source "ChessBase"]
[SourceQuality "1"]
[TimeControl "40/5400+30:1800+30"]

{[%evp 9,76,-8,-22,-1,0,-2,14,1,64,66,62,65,79,59,59,59,67,86,67,61,64,47,73,61,125,32,81,-1,-6,0,0,0,0,-25,-31,-31,-32,-26,-32,-31,-23,-66,-40,-37,-37,-45,-46,-46,-46,-44,-44,-44,-45,-42,-41,-38,0,0,0,-35,-35,-37,-47,-23,0,-19,0,-22,0]} 1. b3 {[%emt 0:04:59]} d5 {[%emt 0:02:52]} 2. Bb2 {[%emt 0:00:08]} Bf5 {[%emt 0:00:09]} 3. d3 {[%emt 0:01:01]} e6 {[%emt 0:01:34]} 4. Nd2 {[%emt 0:00:16]} Nf6 {[%emt 0:00:19]} 5. g3 {[%emt 0:00:14]} a5 {[%emt 0:03:45]} 6. Bg2 {[%emt 0:06:15] A01: Nimzowitsch-Larsen Opening.} a4 {[%emt 0:00:47]} 7. e4 {[%emt 0:00:37]} Bg6 {[%emt 0:02:05]} 8. Ne2 $146 {[%emt 0:03:59]} ({Predecessor:} 8. exd5 Nxd5 9. Ngf3 a3 10. Be5 f6 11. Bd4 Nc6 12. Be3 Nc3 13. Qc1 Bb4 14. Kf1 Bxd3+ 15. cxd3 Qxd3+ {0-1 Artemiev,V (2704)-Tang,A (2538) Katara Bullet Final blitz 2021 (4.7)}) 8... a3 {[%emt 0:02:03]} (8... dxe4 $11 9. dxe4 a3) 9. Bxf6 $14 {[%emt 0:04:14]} Qxf6 {[%emt 0:00:09]} 10. exd5 {[%emt 0:00:15]} exd5 {[%emt 0:11:57]} 11. Bxd5 {[%emt 0:00:09]} Nc6 {[%emt 0:02:59]} 12. O-O {[%emt 0:14:40]} (12. Bxc6+ Qxc6 13. O-O O-O-O $11) 12... O-O-O $1 {[%emt 0:00:08]} 13. Nf4 {[%emt 0:00:07]} Kb8 {[%emt 0:09:09]} 14. Bg2 {[%emt 0:11:16]} (14. Ne4 $6 Bxe4 15. Bxe4 (15. dxe4 Nb4 $15) 15... Nb4 $11) 14... Nb4 {[%emt 0:08:35]} 15. Nc4 {[%emt 0:04:45][%cal Od1d2]} Bc5 {[%emt 0:24:20]} 16. Qd2 {[%emt 0:07:19]} Bf5 {[%emt 0:13:19]} ({Black should play} 16... c6 $14) 17. Ne3 {[%emt 0:05:57]} (17. Nxa3 g5 18. Nh5 Qg6 $17) (17. Na5 $16) 17... h5 {[%emt 0:01:11] [#]} 18. Rad1 {[%emt 0:09:21]} (18. h4 $1 $16) 18... h4 $1 $11 {[%emt 0:06:00] White must now prevent ...hxg3.} (18... Nxa2 $6 19. Nfd5 Bxe3 20. Nxe3 $16) 19. Nxf5 {[%emt 0:00:50]} (19. c3 {is more complex.} Nxd3 20. Nfd5 Bxe3 21. Qxe3 Qe6 22. Qxe6 fxe6 23. Ne3) 19... Qxf5 {[%emt 0:00:22]} 20. c3 {[%emt 0:00:46]} hxg3 $1 {[%emt 0:00:55]} 21. hxg3 {[%emt 0:01:05]} (21. cxb4 $5 gxf2+ 22. Kh1 $11) 21... g5 $1 {[%emt 0:02:57]} (21... Qh7 $6 22. Rfe1 $16) 22. cxb4 {[%emt 0:12:32]} gxf4 {[%emt 0:00:08]} 23. Qxf4 {[%emt 0:04:49]} (23. bxc5 Qh5 24. f3 Qh2+ (24... Qxc5+ $2 {loses.} 25. d4 $18) 25. Kf2 Qxg3+ 26. Ke2 Rhe8+ (26... Qxg2+ {gets mated.} 27. Rf2 Rhe8+ 28. Qe3 Rxe3+ 29. Kd2 Rexd3+ 30. Kc2 Qxf2+ 31. Rd2 Rxd2+ 32. Kc3 Qxc5#)) 23... Qxf4 {[%emt 0:00:20]} 24. gxf4 {[%emt 0:00:03]} Bxb4 {[%emt 0:01:43]} 25. d4 {[%emt 0:00:04]} Rh4 {[%emt 0:02:57]} 26. Rd3 {[%emt 0:00:27]} Rxf4 {[%emt 0:00:08]} 27. Rfd1 {[%emt 0:00:12]} Rd6 {[%emt 0:00:51]} 28. Bf3 {[%emt 0:01:35]} Ba5 {[%emt 0:01:53]} 29. Kg2 {[%emt 0:03:15]} Bb6 {[%emt 0:00:18]} 30. d5 {[%emt 0:00:07]} Rg6+ {[%emt 0:00:39]} 31. Kf1 {[%emt 0:00:03]} Rh6 {[%emt 0:00:44]} 32. R1d2 {[%emt 0:00:19]} Rh3 {[%emt 0:00:22]} 33. Kg2 {[%emt 0:00:27]} Rh6 {[%emt 0:00:23]} 34. Rc2 {[%emt 0:01:30]} Rg6+ {[%emt 0:00:28]} 35. Kf1 {[%emt 0:00:02]} Rgf6 {[%emt 0:00:44]} 36. Kg2 {[%emt 0:00:19]} Rg6+ {[%emt 0:00:10]} 37. Kf1 {[%emt 0:00:02]} Rgf6 {[%emt 0:00:19]} 38. Kg2 {[%emt 0:00:03]} Rg6+ {[%emt 0:00:08] Weighted Error Value: White=0.16 (very precise) /Black=0.10 (very precise)   Mistake:       	White=2     	Black=2      Inaccurate:     	White=2     	Black=3      OK:         	White=10    	Black=12     Best:        	White=6     	Black=1      Strong:       	---       	Black=4} 1/2-1/2

[Event "EICC 2025"]
[Site "Eforie-Nord"]
[Date "2025.03.17"]
[Round "3.17"]
[White "Sokolovsky, Yahli"]
[Black "Pastar, Slaven"]
[Result "1-0"]
[Annotator "RC"]
[ECO "C42"]
[WhiteElo "2545"]
[BlackElo "2377"]
[PlyCount "71"]
[EventDate "2025.03.14"]
[EventType "swiss"]
[EventCountry "ROU"]
[SourceTitle "playchess.com"]
[Source "ChessBase"]
[SourceQuality "1"]
[TimeControl "40/5400+30:1800+30"]

1. e4 {[%emt 0:00:03]} e5 {[%emt 0:00:13]} 2. Nf3 {[%emt 0:00:05]} Nf6 {[%emt 0:00:13]} 3. Nxe5 {[%emt 0:00:05]} d6 {[%emt 0:00:50]} 4. Nf3 {[%emt 0:00:05]} Nxe4 {[%emt 0:00:15]} 5. Nc3 {[%emt 0:00:04]} Nxc3 {[%emt 0:01:00]} 6. dxc3 {[%emt 0:00:05]} Be7 {[%emt 0:00:29]} 7. Be3 {[%emt 0:00:15]} O-O {[%emt 0:03:37]} 8. Qd2 {[%emt 0:00:06]} Nd7 {[%emt 0:00:23]} 9. O-O-O {[%emt 0:00:09]} Nf6 {[%emt 0:02:17]} 10. Bd3 {[%emt 0:00:39]} Re8 {[%emt 0:01:46]} 11. Rhe1 {[%emt 0:00:22]} Bg4 {[%emt 0:02:29]} 12. Bg5 {[%emt 0:00:08]} Nh5 {[%emt 0:03:09]} 13. Bxe7 {[%emt 0:00:08]} Rxe7 {[%emt 0:00:09]} 14. Be4 {[%emt 0:01:17]} Rb8 {[%emt 0:02:14]} 15. h3 {[%emt 0:00:05]} Bd7 {[%emt 0:03:12]} 16. Nd4 {[%emt 0:00:10]} Nf6 {[%emt 0:02:13]} 17. Bf3 {[%emt 0:00:05]} Rxe1 {[%emt 0:02:10]} 18. Rxe1 {[%emt 0:00:10]} c6 {[%emt 0:10:57]} 19. c4 {[%emt 0:00:29]} Qf8 {[%emt 0:04:32]} 20. Qa5 {[%emt 0:03:49]} Ra8 {[%emt 0:11:58]} 21. Rd1 {[%emt 0:14:39]} Qd8 {[%emt 0:07:57]} 22. Qb4 {[%emt 0:21:30]} Qc7 {[%emt 0:04:15]} 23. Nb3 {[%emt 0:01:19]} Ne8 {[%emt 0:07:07]} 24. Qa5 {[%emt 0:00:05]} b6 {[%emt 0:05:37]} 25. Qg5 {[%emt 0:04:28]} Rd8 {[%emt 0:04:56]} 26. Nd4 {[%emt 0:04:44]} Nf6 {[%emt 0:19:32]} 27. g4 {[%emt 0:12:05]} a6 {[%emt 0:00:00]} 28. Qf4 {[%emt 0:04:14]} c5 {[%emt 0:00:00]} 29. g5 {[%emt 0:33:37]} Ne8 {[%emt 0:00:00]} 30. Bd5 {[%emt 0:00:30]} Bxh3 {[%emt 0:00:00]} 31. Nc6 {[%emt 0:00:00]} Rd7 {[%emt 0:00:23]} 32. Re1 {[%emt 0:00:00]} Kf8 {[%emt 0:02:00]} 33. Rh1 {[%emt 0:00:00]} Be6 {[%emt 0:00:23]} 34. Rxh7 {[%emt 0:00:00]} g6 {[%emt 0:00:31]} 35. Rh8+ {[%emt 0:00:00]} Kg7 {[%emt 0:00:05]} 36. Qh4 {[%emt 0:00:00]} 1-0

[Event "EICC 2025"]
[Site "Eforie-Nord"]
[Date "2025.03.17"]
[Round "3.18"]
[White "Iturrizaga Bonelli, Eduardo"]
[Black "Lavrencic, Matic"]
[Result "1/2-1/2"]
[Annotator "RC"]
[ECO "E11"]
[WhiteElo "2582"]
[BlackElo "2446"]
[PlyCount "27"]
[EventDate "2025.03.14"]
[EventType "swiss"]
[EventCountry "ROU"]
[SourceTitle "playchess.com"]
[Source "ChessBase"]
[SourceQuality "1"]
[TimeControl "40/5400+30:1800+30"]

1. d4 {[%emt 0:02:57]} Nf6 {[%emt 0:00:41]} 2. c4 {[%emt 0:00:51]} e6 {[%emt 0:00:16]} 3. g3 {[%emt 0:00:19]} Bb4+ {[%emt 0:04:40]} 4. Bd2 {[%emt 0:00:39]} a5 {[%emt 0:01:30]} 5. Bg2 {[%emt 0:00:07]} d5 {[%emt 0:00:12]} 6. Nf3 {[%emt 0:00:29]} O-O {[%emt 0:01:18]} 7. Qc2 {[%emt 0:00:05]} c5 {[%emt 0:00:26]} 8. cxd5 {[%emt 0:00:41]} cxd4 {[%emt 0:00:43]} 9. Nxd4 {[%emt 0:00:05]} Qb6 {[%emt 0:00:12]} 10. e3 {[%emt 0:00:07]} exd5 {[%emt 0:00:16]} 11. O-O {[%emt 0:00:05]} Nc6 {[%emt 0:00:12]} 12. Nxc6 {[%emt 0:01:07]} bxc6 {[%emt 0:02:04]} 13. Rc1 {[%emt 0:00:08]} Rb8 {[%emt 0:00:22]} 14. Nc3 {[%emt 0:13:53]} 1/2-1/2

[Event "EICC 2025"]
[Site "Eforie-Nord"]
[Date "2025.03.17"]
[Round "3.18"]
[White "Kiolbasa, Oliwia"]
[Black "Kadric, Denis"]
[Result "0-1"]
[Annotator "RC"]
[ECO "C50"]
[WhiteElo "2360"]
[BlackElo "2542"]
[PlyCount "132"]
[EventDate "2025.03.14"]
[EventType "swiss"]
[EventCountry "ROU"]
[SourceTitle "playchess.com"]
[Source "ChessBase"]
[SourceQuality "1"]
[TimeControl "40/5400+30:1800+30"]

1. e4 {[%emt 0:00:04]} e5 {[%emt 0:00:05]} 2. Nf3 {[%emt 0:00:10]} Nc6 {[%emt 0:00:05]} 3. Bc4 {[%emt 0:00:26]} d6 {[%emt 0:00:35]} 4. a4 {[%emt 0:03:39]} h6 {[%emt 0:00:17]} 5. d4 {[%emt 0:08:40]} Nf6 {[%emt 0:00:19]} 6. dxe5 {[%emt 0:11:59]} dxe5 {[%emt 0:00:06]} 7. Qe2 {[%emt 0:03:47]} Bd6 {[%emt 0:09:33]} 8. O-O {[%emt 0:00:23]} O-O {[%emt 0:00:04]} 9. c3 {[%emt 0:03:08]} Ne7 {[%emt 0:02:56]} 10. Rd1 {[%emt 0:08:10]} Ng6 {[%emt 0:00:40]} 11. Na3 {[%emt 0:00:09]} a6 {[%emt 0:06:03]} 12. Ba2 {[%emt 0:04:34]} Bd7 {[%emt 0:01:31]} 13. a5 {[%emt 0:08:53]} Bxa3 {[%emt 0:02:48]} 14. bxa3 {[%emt 0:00:02]} Qe7 {[%emt 0:00:16]} 15. a4 {[%emt 0:10:44]} Rfd8 {[%emt 0:01:39]} 16. Bb3 {[%emt 0:09:53]} Bc6 {[%emt 0:02:03]} 17. Ba3 {[%emt 0:10:35]} Rxd1+ {[%emt 0:01:42]} 18. Bxd1 {[%emt 0:00:05]} Qe8 {[%emt 0:00:54]} 19. Nd2 {[%emt 0:04:07]} Rd8 {[%emt 0:03:24]} 20. f3 {[%emt 0:07:42]} Bxa4 {[%emt 0:02:51]} 21. Nf1 {[%emt 0:00:06]} Nf4 {[%emt 0:02:07]} 22. Qe1 {[%emt 0:00:06]} Bxd1 {[%emt 0:01:04]} 23. Rxd1 {[%emt 0:00:06]} Rxd1 {[%emt 0:00:02]} 24. Qxd1 {[%emt 0:00:09]} Qb5 {[%emt 0:02:12]} 25. g3 {[%emt 0:03:19]} Ne2+ {[%emt 0:02:23]} 26. Kf2 {[%emt 0:01:34]} Nxc3 {[%emt 0:00:04]} 27. Qc2 {[%emt 0:00:03]} Qc4 {[%emt 0:08:33]} 28. Ke1 {[%emt 0:01:12]} Qc6 {[%emt 0:11:44]} 29. Bb2 {[%emt 0:00:05]} Nb5 {[%emt 0:00:01]} 30. Qxc6 {[%emt 0:00:12]} bxc6 {[%emt 0:00:01]} 31. Bxe5 {[%emt 0:00:11]} Nd7 {[%emt 0:00:01]} 32. Bf4 {[%emt 0:01:31]} Nc5 {[%emt 0:01:12]} 33. Nd2 {[%emt 0:00:06]} f6 {[%emt 0:03:29]} 34. Nc4 {[%emt 0:00:38]} Kf7 {[%emt 0:00:06]} 35. Be3 {[%emt 0:00:29]} Nb7 {[%emt 0:00:04]} 36. Kd2 {[%emt 0:00:34]} Ke6 {[%emt 0:00:47]} 37. Kd3 {[%emt 0:00:22]} N5d6 {[%emt 0:02:52]} 38. Bd2 {[%emt 0:00:43]} Nc5+ {[%emt 0:06:24]} 39. Kc3 {[%emt 0:00:01]} Nb5+ {[%emt 0:00:05]} 40. Kb4 {[%emt 0:00:54]} Nd3+ {[%emt 0:05:24]} 41. Kb3 {[%emt 0:02:28]} Nd6 {[%emt 0:03:25]} 42. Be3 {[%emt 0:15:48]} Kd7 {[%emt 0:07:11]} 43. Nd2 {[%emt 0:01:52]} Ne5 {[%emt 0:00:35]} 44. f4 {[%emt 0:01:18]} Nef7 {[%emt 0:00:02]} 45. Bd4 {[%emt 0:01:01]} Nb7 {[%emt 0:01:42]} 46. Bc3 {[%emt 0:01:13]} Ke6 {[%emt 0:02:10]} 47. Kc4 {[%emt 0:02:46]} Nfd6+ {[%emt 0:01:16]} 48. Kd3 {[%emt 0:00:05]} Nb5 {[%emt 0:06:16]} 49. Nb3 {[%emt 0:00:12]} c5 {[%emt 0:01:21]} 50. Be1 {[%emt 0:02:07]} Kd6 {[%emt 0:00:09]} 51. Nc1 {[%emt 0:03:23]} Kc6 {[%emt 0:00:52]} 52. Ne2 {[%emt 0:00:11]} N7d6 {[%emt 0:11:59]} 53. e5 {[%emt 0:00:57]} fxe5 {[%emt 0:02:43]} 54. fxe5 {[%emt 0:00:02]} Nf7 {[%emt 0:00:03]} 55. Ke4 {[%emt 0:00:25]} Ng5+ {[%emt 0:00:57]} 56. Ke3 {[%emt 0:01:45]} Kd5 {[%emt 0:01:17]} 57. g4 {[%emt 0:02:10]} Nf7 {[%emt 0:03:19]} 58. Bg3 {[%emt 0:01:16]} g5 {[%emt 0:01:01]} 59. h4 {[%emt 0:00:45]} Nxe5 {[%emt 0:00:58]} 60. hxg5 {[%emt 0:00:05]} hxg5 {[%emt 0:00:07]} 61. Bxe5 {[%emt 0:00:32]} Kxe5 {[%emt 0:00:03]} 62. Ng1 {[%emt 0:00:07]} Nd4 {[%emt 0:00:34]} 63. Nh3 {[%emt 0:00:05]} Ne6 {[%emt 0:00:14]} 64. Nf2 {[%emt 0:00:21]} Kd5 {[%emt 0:00:59]} 65. Kd3 {[%emt 0:00:34]} c4+ {[%emt 0:00:16]} 66. Kc3 {[%emt 0:00:05]} Nc5 {[%emt 0:00:02]} 0-1

[Event "EICC 2025"]
[Site "Eforie-Nord"]
[Date "2025.03.17"]
[Round "3.19"]
[White "Keinanen, Toivo"]
[Black "Turski, Bartlomiej"]
[Result "1/2-1/2"]
[Annotator "RC"]
[ECO "A07"]
[WhiteElo "2535"]
[BlackElo "2369"]
[PlyCount "59"]
[EventDate "2025.03.14"]
[EventType "swiss"]
[EventCountry "ROU"]
[SourceTitle "playchess.com"]
[Source "ChessBase"]
[SourceQuality "1"]
[TimeControl "40/5400+30:1800+30"]

1. g3 {[%emt 0:00:03]} Nf6 {[%emt 0:00:20]} 2. Bg2 {[%emt 0:00:54]} d5 {[%emt 0:00:20]} 3. Nf3 {[%emt 0:03:25]} e6 {[%emt 0:00:39]} 4. O-O {[%emt 0:05:04]} Be7 {[%emt 0:00:07]} 5. d3 {[%emt 0:00:03]} O-O {[%emt 0:00:36]} 6. Bf4 {[%emt 0:00:02]} c5 {[%emt 0:02:08]} 7. e4 {[%emt 0:02:19]} Nc6 {[%emt 0:01:59]} 8. a4 {[%emt 0:00:20]} b6 {[%emt 0:04:17]} 9. Qe2 {[%emt 0:06:29]} dxe4 {[%emt 0:09:13]} 10. dxe4 {[%emt 0:02:13]} Bb7 {[%emt 0:04:54]} 11. Nc3 {[%emt 0:03:57]} Qc8 {[%emt 0:06:05]} 12. Rfd1 {[%emt 0:07:44]} Nb4 {[%emt 0:08:13]} 13. e5 {[%emt 0:20:37]} Nfd5 {[%emt 0:02:01]} 14. Bg5 {[%emt 0:04:42]} Nxc3 {[%emt 0:08:36]} 15. bxc3 {[%emt 0:00:12]} Nd5 {[%emt 0:00:53]} 16. Bxe7 {[%emt 0:17:57]} Nxe7 {[%emt 0:00:24]} 17. Ng5 {[%emt 0:00:42]} Bxg2 {[%emt 0:04:56]} 18. Kxg2 {[%emt 0:00:28]} Qc6+ {[%emt 0:01:18]} 19. Kg1 {[%emt 0:02:10]} h6 {[%emt 0:02:03]} 20. Ne4 {[%emt 0:00:54]} Rad8 {[%emt 0:02:35]} 21. Nd6 {[%emt 0:02:11]} Nf5 {[%emt 0:01:22]} 22. Qb5 {[%emt 0:04:39]} Qc7 {[%emt 0:02:32]} 23. Nc4 {[%emt 0:01:16]} Rxd1+ {[%emt 0:01:16]} 24. Rxd1 {[%emt 0:00:02]} Rd8 {[%emt 0:00:17]} 25. Rd3 {[%emt 0:01:15]} Kh7 {[%emt 0:06:26]} 26. Nd2 {[%emt 0:05:20]} Kg8 {[%emt 0:07:25]} 27. Ne4 {[%emt 0:01:52]} c4 {[%emt 0:06:47]} 28. Rd2 {[%emt 0:03:07]} Rxd2 {[%emt 0:02:00]} 29. Nxd2 {[%emt 0:00:30]} Qd8 {[%emt 0:00:56]} 30. Nf1 {[%emt 0:01:46]} 1/2-1/2